Cogmind - Beta 10.2 @@@ ROGUE MODE // 2021.08.09 @ 21:37:22 Player: ziodice Result: Destroyed by S-10 Pest with Light Assault Rifle Performance ------------- Evolutions (1) 500 Regions Visited (2) 400 Robots Destroyed (41) 205 Value Destroyed (708) 708 Prototype IDs (0) 0 Alien Tech Used (0) 0 Bonus (0) 0 TOTAL SCORE: 1813 Bonus ------- None Cogmind --------- Core Integrity 0/400 Matter 300/300 Energy 100/100 System Corruption 0% Temperature Cool (0) Movement Core (550) Ox10 Location -9/Materials Parts ------- > --- POWER (1) -------- (None) > --- PROPULSION (4) --- (None) > --- UTILITY (2) ------ High-capacity Storage Unit > --- WEAPON (2) ------- (None) > --- INVENTORY (12) --- Advanced Beam Cannon Light Assault Rifle Peak State ------------ > --- POWER ------------ Ion Engine > --- PROPULSION ------- Aluminum Leg Aluminum Leg > --- UTILITY ---------- Sensor Array Hacking Suite > --- WEAPON ----------- Assault Rifle Light Cannon > --- INVENTORY -------- Improved Terrain Scanner Grenade Launcher [Rating: 9] Favorites ----------- Power Ion Engine Engine Ion Engine Propulsion Aluminum Leg Leg Aluminum Leg Utility High-capacity Storage Unit Device Improved Terrain Scanner Storage High-capacity Storage Unit Processor Seismic Analyzer Hackware Hacking Suite Weapon Light Cannon Energy Gun EM Pulse Gun Ballistic Gun Assault Rifle Ballistic Cannon Light Cannon Launcher Grenade Launcher Special Weapon Mining Laser Special Melee Weapon Datajack Build | -11 -10 -9 ------- Run | Scr Mat Mat Slots Evolved 2 | . . 2 Power . | . . . Propulsion 2 | . . 2 Utility . | . . . Weapon . | . . . Parts Attached 22 | 8 14 . Power 3 | 1 2 . Engine 3 | 1 2 . Core . | . . . Reactor . | . . . Propulsion 4 | 2 2 . Treads . | . . . Leg 4 | 2 2 . Wheel . | . . . Hover . | . . . Flight . | . . . Utility 6 | 2 4 . Device 2 | 1 1 . Storage 2 | . 2 . Processor 1 | 1 . . Hackware 1 | . 1 . Protection . | . . . Artifact . | . . . Weapon 9 | 3 6 . Energy Gun 2 | 2 . . Energy Cannon . | . . . Ballistic Gun 1 | 1 . . Ballistic Cannon 2 | . 2 . Launcher 1 | . 1 . Special Weapon 2 | . 2 . Impact Weapon . | . . . Slashing Weapon . | . . . Piercing Weapon . | . . . Special Melee Weapon 1 | . 1 . Unidentified Prototypes . | . . . Parts Lost 12 | . 6 6 Power 1 | . . 1 Propulsion 2 | . . 2 Utility 3 | . 2 1 Weapon 6 | . 4 2 Highest Loss Streak 5 | . 5 4 Average Slot Usage (%) 85 | . 94 61 Engine 12 | . 14 9 Leg 23 | . 28 11 Device 4 | . 6 . Storage 16 | . 14 21 Processor 2 | . 2 . Hackware 1 | . 2 . Ballistic Gun 3 | . 5 . Ballistic Cannon 10 | . 10 9 Special Weapon 6 | . 6 9 Naked Turns . | . . . Heaviest Build 45 | 8 45 45 Greatest Support 20 | 20 20 20 Greatest Overweight (x) 11 | . 2 11 Average Overweight (x) 1 | . 1 3 Largest Inventory Capacity 12 | 4 12 12 Average Capacity 8 | 4 8 12 Most Carried 4 | 4 4 2 Average Carried 1 | 1 1 1 Final Capacity 12 | 4 12 12 Final Carried 2 | 1 . 2 Class Distribution -------------------- 97% | Mutant Dominant Class ---------------- Mutant | -10/Materials Mutant | -9/Materials Resources | -11 -10 -9 ----------- Run | Scr Mat Mat Matter Collected 1103 | 307 508 288 Remotely . | . . . Salvage Created 862 | 114 525 223 Parts 84 | 11 43 30 Haulers Intercepted 1 | . 1 . Recyclers Shooed 1 | . 1 . Parts Field Recycled . | . . . Retrieved Matter . | . . . Parts Self-Destructed . | . . . Prevented . | . . . Kills | -11 -10 -9 ------- Run | Scr Mat Mat Combat Hostiles Destroyed 17 | 1 13 3 Guns 5 | 1 4 . Cannons 7 | . 4 3 AOE 5 | . 5 . Classes Destroyed 10 | 3 5 2 Worker 5 | 1 2 2 Builder 7 | . 3 4 Tunneler 5 | 4 1 . Hauler 1 | . 1 . Recycler 1 | . . 1 Operator 1 | . 1 . Watcher 4 | . 3 1 Swarmer 5 | . 3 2 Grunt 11 | 1 10 . Sentry 1 | . . 1 Best Kill Streak 8 | 2 8 4 Combat Bots Only 6 | 1 6 2 Max Kills in Single Turn 3 | 1 3 1 Gunslinging . | . . . Exploded 2 | . 2 . Melee . | . . . Uniques/NPCs Destroyed . | . . . Combat | -11 -10 -9 -------- Run | Scr Mat Mat Damage Taken 1450 | 86 597 767 Core 520 | 22 96 402 Absorbed by Shields . | . . . Core Remaining (%) 71 | 91 52 . Volleys Fired 135 | 22 79 34 Largest 2 | 2 2 2 Hottest 135 | 60 135 135 Shots Fired 185 | 31 116 38 Gun 86 | 31 55 . Cannon 80 | . 46 34 Launcher 12 | . 12 . Special 7 | . 3 4 Kinetic 143 | 9 100 34 Thermal 20 | 13 3 4 Explosive 12 | . 12 . Electromagnetic 10 | 9 1 . Robot Hit Streak 10 | 9 10 4 Robot Miss Streak 4 | 3 4 3 Penetration Max . | . . . Secondary Targets . | . . . Shots Hit Robots 110 | 21 67 22 Core Hits 56 | 7 37 12 Critical Hits 1 | . 1 . Critical Kills . | . . . Critical Parts Destroyed 1 | . 1 . Melee Attacks 1 | . 1 . Impact . | . . . Slashing . | . . . Piercing . | . . . Sneak Attacks . | . . . Combat Hostiles . | . . . Follow-up Attacks . | . . . Damage Inflicted 1965 | 232 1302 431 Guns 615 | 232 383 . Cannons 879 | . 472 407 Explosions 447 | . 447 . Melee . | . . . Ramming . | . . . Kinetic 1289 | 38 844 407 Thermal 154 | 130 . 24 Explosive 447 | . 447 . Electromagnetic 75 | 64 11 . Impact . | . . . Slashing . | . . . Piercing . | . . . Highest Corruption . | . . . Average Corruption . | . . . Corruption Purged . | . . . Overload Shots . | . . . Overflow Damage 21 | . 21 . Projectiles 6 | . 6 . Explosions 15 | . 15 . Melee . | . . . Knockbacks 11 | . 5 6 Impact . | . . . Kinetic 11 | . 5 6 Secondary . | . . . Self-Inflicted Damage 102 | . 102 . Shots 3 | . 3 . Rammed . | . . . Targets Rammed . | . . . Kicked . | . . . Crushed . | . . . Highest Temperature 60 | 48 35 60 Average Temperature 16 | 25 10 24 Received Heat Transfer 303 | 48 228 27 Siege Activations . | . . . Robots Corrupted . | . . . Combat Hostiles . | . . . Parts Fried . | . . . Impact Corruptions . | . . . Robots Melted . | . . . Combat Hostiles . | . . . Parts Melted . | . . . Heat Transferred 350 | 300 . 50 Parts Sabotaged . | . . . Parts Stolen . | . . . Parts Stripped . | . . . Power Chain Reactions . | . . . Missiles Intercepted . | . . . Alert | -11 -10 -9 ------- Run | Scr Mat Mat Peak Influence 323 | 45 323 195 Initial 53 | . 29 53 Average 132 | 24 156 154 Maximum Alert Level 1 | . 1 . Low Security (%) 76 | 100 60 100 Level 1 23 | . 39 . Level 2 . | . . . Level 3 . | . . . Level 4 . | . . . Level 5 . | . . . High Security . | . . . Max Security . | . . . Squads Dispatched 4 | . 3 1 Investigation . | . . . Extermination . | . . . Reinforcement 4 | . 3 1 Assault . | . . . Garrison . | . . . Intercept . | . . . Construction Impeded . | . . . Haulers Reinforced . | . . . Stealth | -11 -10 -9 --------- Run | Scr Mat Mat Distress Signals 2 | . 2 . Communications Jammed . | . . . Distress Signals . | . . . Times Spotted 36 | 1 26 9 Peak Tracking Total 5 | 1 5 4 Tactical Retreats . | . . . Traps | -11 -10 -9 ------- Run | Scr Mat Mat Traps Triggered 1 | . 1 . Indirectly . | . . . Trap Hack Attempts . | . . . Triggered . | . . . Disarmed . | . . . Reprogrammed . | . . . Reused . | . . . Traps Extracted . | . . . Installed . | . . . Triggered . | . . . Machines | -11 -10 -9 ---------- Run | Scr Mat Mat Machines Disabled 5 | . 4 1 Max in Single Turn 1 | . 1 1 Machines Sabotaged . | . . . Garrisons Compromised . | . . . Overloaded Fab Kills . | . . . Fab Network Shutdowns . | . . . Hacking | -11 -10 -9 --------- Run | Scr Mat Mat Machines Accessed 3 | . 3 . Terminals 1 | . 1 . Fabricators . | . . . Repair Stations 1 | . 1 . Recycling Units 1 | . 1 . Scanalyzers . | . . . Garrison Access . | . . . Total Hacks 8 | . 8 . Successful 6 | . 6 . Failed 2 | . 2 . Catastrophic . | . . . Database Lockouts . | . . . Manual . | . . . Terminals 4 | . 4 . Fabricators . | . . . Repair Stations 1 | . 1 . Recycling Units 3 | . 3 . Scanalyzers . | . . . Garrison Access . | . . . Terminal Hacks 3 | . 3 . Dispatch Records 1 | . 1 . Surveillance Status 1 | . 1 . Hauler Manifests 1 | . 1 . Fabricator Hacks . | . . . Repair Station Hacks 1 | . 1 . Scan Component 1 | . 1 . Recycling Unit Hacks 2 | . 2 . Recycle Component 2 | . 2 . Scanalyzer . | . . . Garrison Access Hacks . | . . . Unauthorized Hacks . | . . . Terminals . | . . . Fabricators . | . . . Repair Stations . | . . . Recycling Units . | . . . Scanalyzers . | . . . Garrison Access . | . . . Data Cores Recovered 1 | . 1 . Used . | . . . Hacking Detections 2 | . 2 . Full Trace Events 1 | . 1 . Feedback Events . | . . . Feedback Blocked . | . . . Robot Schematics Acquired . | . . . Robots Built . | . . . Matter . | . . . Time . | . . . Total Robot Build Rating . | . . . Part Schematics Acquired . | . . . Parts Built . | . . . Matter . | . . . Time . | . . . Total Part Build Rating . | . . . Parts Repaired . | . . . Time . | . . . Parts Recycled 2 | . 2 . Recycled Matter . | . . . Retrieved Matter . | . . . Retrieved Components . | . . . Parts Scanalyzed . | . . . Part Schematics Acquired . | . . . Parts Damaged . | . . . Bothacking | -11 -10 -9 ------------ Run | Scr Mat Mat Used RIF Installer . | . . . Robots Hacked 1 | . 1 . Non-combat . | . . . Combat 1 | . 1 . Robot Hacks Applied 1 | . 1 . parse_system 1 | . 1 . Relay Couplers Released . | . . . Robots Rewired . | . . . Allies Hacked . | . . . Hacks Repelled . | . . . Allies | -11 -10 -9 -------- Run | Scr Mat Mat Total Allies . | . . . Largest Group . | . . . Highest-Rated Group . | . . . Highest-Rated Ally . | . . . Total Orders . | . . . Ally Attacks . | . . . Total Damage . | . . . Kills . | . . . Allies Corrupted . | . . . Allies Melted . | . . . Intel | -11 -10 -9 ------- Run | Scr Mat Mat Robot Analysis Total . | . . . Derelict Logs Recovered . | . . . Drone Launches . | . . . Drone Recoveries . | . . . Exploration | -11 -10 -9 ------------- Run | Scr Mat Mat Turns Passed 1759 | 308 1053 398 Spaces Moved 870 | 210 532 128 Core 31 | 22 . 9 Treads . | . . . Legs 839 | 188 532 119 Wheels . | . . . Hover . | . . . Flight . | . . . Fastest Speed 50 | 50 120 180 Average Speed 157 | 112 152 248 Slowest Speed 600 | 120 180 600 Overloaded Moves . | . . . Propulsion Burnouts . | . . . Robots Hopped . | . . . Cave-ins Triggered . | . . . Exploration Rate (%) 33 | 9 81 11 Regions Visited 2 Branch Regions . Pre-discovered Areas . | . . . Known Exits Taken . | . . . Unknown Exits Taken 2 | 1 1 . Scrap Searched . | . . . Spaces Dug . | . . . Terrain Destroyed 7 | . 6 1 Melee . | . . . Projectile 2 | . 1 1 AOE 5 | . 5 . Terrain Rammed . | . . . Walls Destroyed . | . . . Machines Disabled . | . . . Actions | -11 -10 -9 --------- Run | Scr Mat Mat Total 1066 | 252 650 164 Wait 5 | . 5 . Move 868 | 209 531 128 Hop . | . . . Pick Up 26 | 10 14 2 Fast Attach . | . . . Attach 16 | 8 8 . Detach 1 | 1 . . Swap 6 | . 6 . Drop 8 | 2 6 . Fire 135 | 22 79 34 Melee 1 | . 1 . Ram . | . . . Kick . | . . . Crush . | . . . Escape Stasis . | . . . Rewire . | . . . Trap . | . . . Miscellaneous . | . . . Route ------- -11/Scrapyard -10/Materials (discovered 3 exits: [*Mat x2] / [*Min]) -9/Materials History --------- Turn | Location | Event 2 | -11/Scrapyard | Met Revision 17 75 | -11/Scrapyard | Discovered new exit (range 8) 309 | -11/Scrapyard | Entered Materials 310 | -10/Materials | Build established: Mutant 768 | -10/Materials | Lost 5 parts (2u3w) 881 | -10/Materials | Discovered new exit (range 6) 1022 | -10/Materials | Discovered new exit (range 13) 1301 | -10/Materials | Discovered new exit (range 11) 1362 | -10/Materials | Entered another Materials area 1362 | -9/Materials | Evolved 2 slots: Propulsion x2 1731 | -9/Materials | Core integrity fell below 50% 1741 | -9/Materials | Lost 4 parts (1p1n2w) 1750 | -9/Materials | Core integrity fell below 20% 1760 | -9/Materials | Destroyed by S-10 Pest with Light Assault Rifle Last Messages --------------- K-01 Serf collects debris. R-06 Scavenger collects Flight Unit. Scanalyzer disabled. K-01 Serf destroyed. Acquired 23 matter. Extracted 50 matter. Scanalyzer disabled. K-01 Serf collects debris. Aluminum Leg destroyed. Mining Laser destroyed. Ion Engine destroyed. Lgt. Cannon destroyed. S-10 Pest destroyed. ALERT: Hostiles spotted, dispatching reinforcements to Terminal M008. R-06 Scavenger collects Com. Wheel. R-06 Scavenger collects Welding Torch. R-06 Scavenger collects Wheel. R-06 Scavenger collects Sensor Array. Hcp. Matter Pod destroyed. [Achievement: First Step to Greatness] Map ----- +----------------------------------------------------+ | ?????????????????????????????????????????????????? | | ????????????????????????? ?????????????????????? | | ????????????????????????? #????????????????????? | | ????????????????????????? +????????????????????? | | ????????????????????????? #????????????????????? | | ????????????????????????? #????????????????????? | | ????????????????????????? #????????????????????? | | ????????????????????????? #????????????????????? | | ????????????????????????# #????????????????????? | | ????????????????????????# ####?????????????????? | | ??????????????###########[%= ??????????????????? | | ??????????????# # * ???????????????????? | | ??????????????# # ????????????????????? | | ??????????????# """ """ # s#????????????????????? | | ??????????????# """ """ # #????????????????????? | | ??????????????# """ """ # #????????????????????? | | ??????????????# # #????????????????????? | | ??????????????# + #????????????????????? | | ??????????????# # u #????????????????????? | | ??????????????########### #????????????????????? | | ???????????????# # #????????????????????? | | ???????????????# """ # #????????????????????? | | ???????????????# """ # #????????????????????? | | ???????????????# """ # #????????????????????? | | ???????????????# ! + #????????????????????? | | ???????????????# " #@ #????????????????????? | | ???????????????# S"" #r #????????????????????? | | ???????????????# "" # #????????#####???????? | | ???????????????# # #?####?###[/!######### | | ???????????????########## # [[ ##[/ ## # | | ????????????????????????# # [[ ""##[! ## """ # | | ????????????????????????# + [[ Y"## ## """ # | | ????????????????????????# # ""## ## """ # | | ????????????????????????# # ??# ## # | | ????????????????????##### #####????# ## # | | ???????????????????##!!!= ##########+######+### | | ???????????????????#! ! | | ???????????????????#! | | ???????????????????#! ! | | ???????????????????#! =##################### | | ???????????????????##!!## ##???????????????????? | | ????????????????????###?# #????????????????????? | | ????????????????????????# #????????????????????? | | ????????????????????????# #????????????????????? | | ????????????????????????# ????????????????????? | | ????????????????????????+ ????????????????????? | | ????????????????????????# ????????????????????? | | ????????????????????????## ###???????????????????? | | ?????????????????????????# #?????????????????????? | | ?????????????????????????# ??????????????????????? | +----------------------------------------------------+ Best States ------------- Heat Dissipation 28 Energy Generation 10 Energy Capacity 250 Matter Stores 409 Matter Capacity 500 Sight Range 16 Robot Scan Range 10 Terrain Scan Range 16 Terrain Scan Density 60 Evasion (%) 50 Offensive Hacking 10 Item Schematics ----------------- None Robot Schematics ------------------ None Fabricated ------------ Nothing Alien Tech Used ----------------- None Achievements -------------- Crack Shot First Step to Greatness Loot Pinata Shopping List Uninvited Guest Challenges ------------ None Game ------ Seed MicroMachineActivator Manual? 0 Play Time 00:44:29 Cumulative 1.4 hours Start 2021.08.09 @ 20:44:37 End 2021.08.09 @ 21:37:22 Sessions 1 Manual Loads 0 Difficulty Rogue Special Mode None Game No. 2 Rogue 2 Adventurer 0 Explorer 0 Win Type - Total 0 Types 0/0/0/0/0/0/0/0/0 Lore% 0 Gallery% 2 Achievement% 1 Wizard Run 0 Options --------- ASCII 0 Keyboard 0 Movement Mouse Keybinds 0 Fullscreen 2 Font 18/SmallcapsGlow Map View 76x50 Tactical HUD 0 Map Filters NONE Filters NONE Steam 1 RUN: b0eafc82-6810-4679-a9be-a1906b7b9391